fUSD/lending_fUSD_20251222
["ID","MTS","AMOUNT","RATE_DAILY","PERIOD"]
[399516784,1766427040827,-457.04108268,0.00012652,2]
[399516785,1766427040836,-500.0,0.00012652,2]
[399516786,1766427040845,-500.0,0.00012652,2]
[399516787,1766427040855,-500.0,0.00012652,2]
[399516788,1766427040864,-500.0,0.00012652,2]
[399516789,1766427040873,-500.0,0.00012652,2]
[399516790,1766427040884,-500.0,0.00012652,2]
[399516791,1766427040894,-200.0,0.00012652,2]
[399516792,1766427040904,-500.0,0.00012652,2]
[399516793,1766427040913,-500.0,0.00012652,2]
[399516794,1766427040923,-500.0,0.00012652,2]
[399516795,1766427040936,-500.0,0.00012652,2]
[399516796,1766427040945,-500.0,0.00012652,2]
[399516798,1766427040954,-151.0,0.00012652,2]
[399516799,1766427040963,-151.0,0.00012652,2]
[399516800,1766427040973,-151.0,0.00012652,2]
[399516801,1766427040983,-151.0,0.00012652,2]
[399516802,1766427040993,-151.0,0.00012652,2]
[399516803,1766427041002,-151.0,0.00012652,2]
[399516804,1766427041012,-151.0,0.00012652,2]
[399516805,1766427041021,-151.0,0.00012652,2]
[399516806,1766427041031,-200.0,0.00012652,2]
[399516807,1766427041041,-200.0,0.00012652,2]
[399516808,1766427041051,-151.0,0.00012652,2]
[399516809,1766427041060,-151.0,0.00012652,2]
[399516810,1766427041070,-151.0,0.00012652,2]
[399516811,1766427041080,-161.08171222,0.00012652,2]
[399516812,1766427041090,-500.0,0.00012652,2]
[399516813,1766427041100,-500.0,0.00012652,2]
[399516815,1766427041109,-500.0,0.00012652,2]
[399516817,1766427041120,-500.0,0.00012652,2]
[399516819,1766427041129,-500.0,0.00012652,2]
[399516820,1766427041139,-500.0,0.00012652,2]
[399516821,1766427041150,-500.0,0.00012652,2]
[399516822,1766427041160,-500.0,0.00012652,2]
[399516823,1766427041170,-500.0,0.00012652,2]
[399516824,1766427041180,-500.0,0.00012652,2]
[399516825,1766427041190,-500.0,0.00012652,2]
[399516826,1766427041201,-500.0,0.00012652,2]
[399516827,1766427041212,-325.7,0.00012652,2]
[399516828,1766427041222,-486.961,0.00012658,2]
[399516829,1766427041232,-8021.365,0.00012658,2]
[399516830,1766427041244,-301.0,0.00012683,2]
[399516831,1766427041254,-279.1,0.00012692,2]
[399516832,1766427041264,-10376.86,0.00012692,2]
[399516833,1766427041275,-150.0,0.00012692,2]
[399516834,1766427041284,-1652.97,0.00012692,2]
[399516835,1766427041294,-2163.04,0.00012697,2]
[399516836,1766427041304,-153.09,0.00012724,2]
[399516837,1766427041314,-166.66,0.0001277,2]
[399516838,1766427041324,-325.7,0.00012926,2]
[399516839,1766427041333,-166.66,0.00013178,2]
[399516840,1766427041343,-200.0,0.000132,2]
[399516841,1766427041353,-200.0,0.000132,2]
[399516842,1766427041363,-500.0,0.000132,2]
[399516843,1766427041372,-325.7,0.000132,2]
[399516844,1766427041381,-587.0,0.0001334,2]
[399516845,1766427041392,-153.09,0.00013393,2]
[399516846,1766427041401,-166.66,0.00013586,2]
[399516847,1766427041421,-1600.0,0.00013667,2]
[399516848,1766427041432,-500.0,0.00013698,2]
[399516849,1766427041442,-500.0,0.00013698,2]
[399516850,1766427041453,-500.0,0.00013698,2]
[399516851,1766427041463,-500.0,0.00013698,2]
[399516852,1766427041473,-500.0,0.00013698,2]
[399516853,1766427041483,-500.0,0.00013698,2]
[399516854,1766427041495,-500.0,0.00013698,2]
[399516855,1766427041505,-500.0,0.00013698,2]
[399516856,1766427041515,-500.0,0.00013698,2]
[399516857,1766427041525,-500.0,0.00013698,2]
[399516858,1766427041535,-500.0,0.00013698,2]
[399516859,1766427041545,-250.0,0.00013741,2]
[399516860,1766427041558,-200.0,0.00013748,2]
[399516861,1766427041569,-200.0,0.00013748,2]
[399516862,1766427041579,-500.0,0.00013748,2]
[399516863,1766427041591,-166.66,0.00013994,2]
[399516864,1766427041601,-153.09,0.00014063,2]
[399516865,1766427041611,-285.84822597,0.00014262,2]
[399516866,1766427041621,-200.0,0.00014296,2]
[399516867,1766427041631,-500.0,0.00014296,2]
[399516868,1766427041641,-166.66,0.00014402,2]
[399516869,1766427041650,-703.0,0.00014659,2]
[399516870,1766427041660,-153.09,0.00014733,2]
[399516871,1766427041669,-200.0,0.00014844,2]
[399516872,1766427041679,-1600.0,0.00015186,2]
[399516873,1766427041689,-299.99,0.0001531,2]
[399516874,1766427041699,-1873.72,0.0001531,2]
[399516875,1766427041709,-3015.4,0.0001531,2]
[399516876,1766427041719,-7681.0,0.00015358,2]
[399516877,1766427041729,-207.4,0.00015391,2]
[399516878,1766427041739,-200.0,0.00015392,2]
[399516879,1766427041749,-3645.3215772,0.00015397,2]
[399516880,1766427041759,-153.09,0.00015402,2]
[399516881,1766427041770,-307.49673677,0.00015493,2]
[399516882,1766427041780,-200.0,0.0001594,2]
[399516883,1766427041790,-500.0,0.00016027,2]
[399516884,1766427041801,-153.09,0.00016072,2]
[399516885,1766427041811,-762.16,0.00016116,2]
[399516886,1766427041821,-2000.0,0.00016376,2]
[399516887,1766427041831,-1749.525,0.00016376,2]
[399516888,1766427041841,-151.66355271,0.00016396,2]
[399516889,1766427041852,-1346.6,0.00016438,2]
[399516890,1766427041862,-500.0,0.00016438,2]
[399516891,1766427041872,-500.0,0.00016438,2]
[399516892,1766427041883,-600.0,0.00016438,2]
[399516893,1766427041893,-10249.63,0.00016438,2]
[399516894,1766427041902,-807.25325449,0.00016438,2]
[399516895,1766427041912,-299.21427027,0.00016488,2]
[399516896,1766427041923,-18036.64,0.00016575,2]
[399516897,1766427041934,-620.0,0.00016616,2]
[399516898,1766427041943,-151.0,0.00016616,2]
[399516899,1766427041954,-721.12765535,0.00016616,2]
[399516900,1766427041968,-151.0,0.00016616,2]
[399516901,1766427041979,-209.40437684,0.00016616,2]
[399516902,1766427041989,-578.20924308,0.00016616,2]
[399516903,1766427042000,-151.0,0.00016616,2]
[399516904,1766427042011,-500.0,0.00016616,2]
[399516905,1766427042021,-500.0,0.00016616,2]
[399516906,1766427042341,-500.0,0.00016616,2]
[399516907,1766427042351,-500.0,0.00016616,2]
[399516908,1766427042361,-500.0,0.00016616,2]
[399516909,1766427042370,-500.0,0.00016616,2]
[399516910,1766427042380,-500.0,0.00016616,2]
[399516911,1766427042389,-574.12855637,0.00016616,2]
[399516912,1766427042398,-500.0,0.00016616,2]
[399516913,1766427042408,-500.0,0.00016616,2]
[399516914,1766427042417,-500.0,0.00016616,2]
[399516915,1766427042427,-500.0,0.00016616,2]
[399516916,1766427042436,-500.0,0.00016616,2]
[399516917,1766427042445,-500.0,0.00016616,2]
[399516918,1766427042455,-500.0,0.00016616,2]
[399516919,1766427042464,-500.0,0.00016616,2]
[399516920,1766427042473,-500.0,0.00016616,2]
[399516921,1766427042483,-500.0,0.00016616,2]
[399516922,1766427042493,-500.0,0.00016616,2]
[399516923,1766427042504,-500.0,0.00016616,2]
[399516924,1766427042514,-500.0,0.00016616,2]
[399516925,1766427042523,-250.0,0.00016616,2]
[399516926,1766427042533,-500.0,0.00016616,2]
[399516927,1766427042542,-250.0,0.00016616,2]
[399516928,1766427042553,-500.0,0.00016616,2]
[399516929,1766427042563,-250.0,0.00016616,2]
[399516930,1766427042572,-500.0,0.00016616,2]
[399516931,1766427042582,-250.0,0.00016616,2]
[399516932,1766427042593,-500.0,0.00016616,2]
[399516933,1766427042602,-250.0,0.00016616,2]
[399516934,1766427042611,-500.0,0.00016616,2]
[399516935,1766427042622,-250.0,0.00016616,2]
[399516936,1766427042636,-322.6107,0.00016616,2]
[399516937,1766427042645,-500.0,0.00016616,2]
[399516938,1766427042654,-250.0,0.00016616,2]
[399516939,1766427042664,-500.0,0.00016616,2]
[399516940,1766427042678,-250.0,0.00016616,2]
[399516941,1766427042688,-500.0,0.00016616,2]
[399516942,1766427042697,-250.0,0.00016616,2]
[399516943,1766427042707,-500.0,0.00016616,2]
[399516944,1766427042717,-242.8316365,0.00016616,2]
[399516945,1766427042727,-250.0,0.00016616,2]
[399516946,1766427042737,-500.0,0.00016616,2]
[399516947,1766427042747,-250.0,0.00016616,2]
[399516948,1766427042757,-500.0,0.00016616,2]
[399516949,1766427042767,-250.0,0.00016616,2]
[399516950,1766427042777,-500.0,0.00016616,2]
[399516951,1766427042786,-250.0,0.00016616,2]
[399516952,1766427042796,-250.0,0.00016616,2]
[399516953,1766427042806,-500.0,0.00016616,2]
[399516954,1766427042816,-250.0,0.00016616,2]
[399516955,1766427042826,-250.0,0.00016616,2]
[399516956,1766427042836,-250.0,0.00016616,2]
[399516957,1766427042846,-250.0,0.00016616,2]
[399516958,1766427042855,-250.0,0.00016616,2]
[399516959,1766427042865,-250.0,0.00016616,2]
[399516960,1766427042875,-250.0,0.00016616,2]
[399516961,1766427042885,-250.0,0.00016616,2]
[399516962,1766427042895,-250.0,0.00016616,2]
[399516963,1766427042904,-250.0,0.00016616,2]
[399516964,1766427042914,-250.0,0.00016616,2]
[399516965,1766427042925,-250.0,0.00016616,2]
[399516966,1766427042935,-250.0,0.00016616,2]
[399516967,1766427042945,-250.0,0.00016616,2]
[399516968,1766427042955,-250.0,0.00016616,2]
[399516969,1766427042965,-250.0,0.00016616,2]
[399516970,1766427042974,-250.0,0.00016616,2]
[399516971,1766427042984,-612.0,0.00016638,2]
[399516972,1766427042995,-3457.0,0.00016638,2]
[399516973,1766427043005,-1609.0,0.00016638,2]
[399516974,1766427043019,-518.0,0.00016638,2]
[399516975,1766427043028,-1262.0,0.00016638,2]
[399516976,1766427043038,-2429.0,0.00016638,2]
[399516977,1766427043048,-564.0,0.00016638,2]
[399516978,1766427043058,-6530.0,0.00016638,2]
[399516979,1766427043067,-676.872,0.00016664,2]
[399516980,1766427043078,-284.32985892,0.00016699,2]
[399516981,1766427043088,-1600.0,0.00016704,2]
[399516982,1766427043098,-1346.6,0.00016762,2]
[399516983,1766427043108,-5150.19,0.00016922,2]
[399516984,1766427043118,-1250.68,0.00016922,2]
[399516985,1766427043127,-931.82821883,0.00016949,2]
[399516986,1766427043137,-500.0,0.00016986,2]
[399516987,1766427043147,-600.0,0.00016986,2]
[399516989,1766427043156,-250.0,0.00017,2]
[399516991,1766427043166,-1346.6,0.00017086,2]
[399516992,1766427043177,-159.11222724,0.00017164,2]
[399516994,1766427043186,-217.15233878,0.00017164,2]
[399516997,1766427043196,-151.0,0.00017164,2]
[399516999,1766427043205,-595.37131296,0.00017164,2]
[399517001,1766427043215,-1852.42,0.00017316,2]
[399517003,1766427043224,-200.0,0.00017316,2]
[399517004,1766427043234,-1000.0,0.00017358,2]
[399517005,1766427043243,-150.0,0.000174,2]
[399517006,1766427043253,-150.271,0.000174,2]
[399517007,1766427043264,-1326.0,0.000174,2]
[399517008,1766427043273,-1346.6,0.00017409,2]
[399517009,1766427043282,-2000.0,0.000175,2]
[399517010,1766427043292,-600.0,0.00017534,2]
[399517011,1766427043302,-225.18697532,0.00017712,2]
[399517012,1766427043311,-151.0,0.00017712,2]
[399517013,1766427043321,-617.40005154,0.00017712,2]
[399517014,1766427043331,-1346.6,0.00017733,2]
[399517015,1766427043341,-881.09,0.00017804,2]
[399517016,1766427043350,-305.0,0.00017839,2]
[399517017,1766427043360,-305.0,0.00017859,2]
[399517018,1766427043370,-305.0,0.00017871,2]
[399517019,1766427043380,-305.0,0.00017966,2]
[399517020,1766427043390,-151.0,0.00017985,2]
[399517021,1766427043400,-334.5472959,0.00017985,2]
[399517022,1766427043410,-305.0,0.00017991,2]
[399517024,1766427043420,-173.48,0.00018,2]
[399517025,1766427043429,-305.0,0.00018016,2]
[399517026,1766427043439,-305.0,0.00018037,2]
[399517027,1766427043448,-1346.6,0.00018057,2]
[399517028,1766427043457,-632.39,0.00018082,2]
[399517029,1766427043468,-305.0,0.000181,2]
[399517030,1766427043479,-305.0,0.00018101,2]
[399517031,1766427043489,-305.0,0.00018109,2]
[399517032,1766427043500,-215.0738,0.0001813,2]
[399517033,1766427043510,-305.0,0.00018136,2]
[399517034,1766427043520,-1600.0,0.00018223,2]
[399517035,1766427043530,-305.0,0.00018246,2]
[399517036,1766427043539,-233.51889341,0.0001826,2]
[399517037,1766427043549,-213.14631305,0.0001826,2]
[399517038,1766427043561,-640.24385345,0.0001826,2]
[399517039,1766427043572,-305.0,0.00018289,2]
[399517040,1766427043581,-305.0,0.00018325,2]
[399517041,1766427043591,-3645.3215772,0.00018335,2]
[399517042,1766427043600,-200.0,0.00018352,2]
[399517043,1766427043610,-305.0,0.00018362,2]
[399517044,1766427043620,-1346.6,0.00018381,2]
[399517045,1766427043632,-305.0,0.0001839,2]
[399517046,1766427043642,-305.0,0.00018408,2]
[399517047,1766427043651,-305.0,0.00018421,2]
[399517048,1766427043660,-305.0,0.00018542,2]
[399517049,1766427043669,-1346.6,0.00018705,2]
[399517050,1766427043679,-305.0,0.00018787,2]
[399517051,1766427043688,-150.9,0.000188,2]
[399517052,1766427043698,-242.15909246,0.00018808,2]
[399517053,1766427043707,-663.93287602,0.00018808,2]
[399517054,1766427043716,-305.0,0.00018888,2]
[399517055,1766427043730,-150.9,0.0001899,2]
[399517056,1766427043753,-211.45726053,0.00019,2]
[399517057,1766427043762,-241.66544061,0.00019,2]
[399517058,1766427043773,-89369.69229523,0.00019,2]
[399517059,1766427043782,-398.55544668,0.00019,2]
[399517060,1766427043791,-377.22464869,0.00019,2]
[399517061,1766427043801,-300.0,0.00019,2]
[399517062,1766427043811,-1346.6,0.00019029,2]
[399517063,1766427043820,-225.40367031,0.00019082,2]
[399517064,1766427043830,-500.0,0.00019088,3]
[399517065,1766427043839,-151.66355271,0.00019128,2]
[399517066,1766427043848,-881.09,0.00019174,2]
[399517067,1766427043859,-715.0,0.00019178,2]
[399517068,1766427043868,-20061.77,0.00019178,2]
[399517069,1766427043877,-305.0,0.00019205,2]
[399517070,1766427043888,-305.0,0.00019236,2]
[399517071,1766427043898,-176.77373822,0.00019256,2]
[399517072,1766427043907,-305.0,0.0001929,2]
[399517073,1766427043917,-1346.6,0.00019352,2]
[399517074,1766427043927,-151.0,0.00019354,2]
[399517075,1766427043937,-346.92554585,0.00019354,2]
[399517076,1766427043947,-642.94,0.00019355,2]
[399517077,1766427043957,-747.8093786,0.00019355,2]
[399517078,1766427043967,-599.60298507,0.00019355,2]
[399517079,1766427043976,-251.11897888,0.00019356,2]
[399517080,1766427043987,-688.49839244,0.00019356,2]
[399517081,1766427043996,-305.0,0.00019413,2]
[399517082,1766427044006,-1000.0,0.00019528,2]
[399517083,1766427044015,-3944.28253318,0.000196,2]
[399517084,1766427044025,-612.0,0.00019638,2]
[399517085,1766427044034,-1857.626,0.00019638,2]
[399517086,1766427044043,-1609.0,0.00019638,2]
[399517087,1766427044053,-518.0,0.00019638,2]
[399517088,1766427044063,-1262.0,0.00019638,2]
[399517089,1766427044072,-2429.0,0.00019638,2]
[399517090,1766427044082,-564.0,0.00019638,2]
[399517091,1766427044092,-650.658,0.00019638,2]
[399517092,1766427044102,-1346.6,0.00019676,2]
[399517093,1766427044111,-6537.70853,0.000198,2]
[399517094,1766427044121,-544.45,0.00019856,2]
[399517095,1766427044130,-556.25,0.00019856,2]
[399517096,1766427044139,-999.0,0.00019868,3]
[399517097,1766427044148,-150.9,0.00019896,2]
[399517098,1766427044158,-6537.70854,0.000199,2]
[399517099,1766427044168,-260.4103811,0.00019904,2]
[399517100,1766427044178,-713.97283296,0.00019904,2]
[399517101,1766427044187,-880.4937002,0.00019906,2]
[399517102,1766427044196,-65056.4466577,0.00019906,2]
[399517103,1766427044206,-2477.8305832,0.00019906,2]
[399517104,1766427044216,-407.45343911,0.00019973,2]
[399517105,1766427044225,-500.0,0.00019973,2]
[399517106,1766427044235,-500.0,0.00019973,2]
[399517107,1766427044246,-17622.69666976,0.0002,5]
[399517108,1766427044256,-590.46167569,0.0002,2]
[399517109,1766427044266,-190.0,0.0002,2]
[399517110,1766427044276,-512.0,0.0002,4]
[399517111,1766427044285,-500.0,0.0002,2]
[399517112,1766427044295,-160.0,0.0002,6]
[399517113,1766427044305,-1851.51379337,0.0002,2]
[399517114,1766427044314,-200.0,0.0002,2]
[399517115,1766427044324,-314.95350618,0.0002,2]
[399517116,1766427044333,-151.0,0.0002,2]
[399517117,1766427044342,-1000.0,0.0002,2]
[399517118,1766427044352,-1346.6,0.0002,2]
[399517119,1766427044361,-186.5,0.0002,2]
[399517120,1766427044370,-870.57525503,0.0002,2]
[399517121,1766427044380,-150.9,0.0002,2]
[399517122,1766427044390,-500.0,0.00020001,2]
[399517123,1766427044399,-500.0,0.00020002,2]
[399517124,1766427044409,-499.9999,0.00020003,2]
[399517125,1766427044419,-8720.0,0.0002001,2]
[399517126,1766427044428,-183.96,0.00020112,2]
[399517127,1766427044438,-1000.0,0.00020116,2]
[399517128,1766427044447,-544.45,0.0002013,2]
[399517129,1766427044458,-556.25,0.0002013,2]
[399517130,1766427044468,-6537.70854,0.0002015,2]
[399517131,1766427044478,-1000.0,0.00020187,2]
[399517132,1766427044488,-1000.0,0.000203,2]
[399517133,1766427044498,-183.94,0.00020358,2]
[399517134,1766427044507,-154.25,0.00020367,2]
[399517135,1766427044516,-1326.0,0.000204,2]
[399517136,1766427044527,-6537.70853,0.000204,2]
[399517137,1766427044536,-270.0455652,0.00020452,2]
[399517138,1766427044547,-740.38982778,0.00020452,2]
[399517139,1766427044561,-21441.69,0.00020548,2]
[399517140,1766427044570,-192.0,0.00020548,2]
[399517141,1766427044580,-1182.0,0.000206,2]
[399517142,1766427044591,-6537.70854,0.0002065,2]
[399517143,1766427044600,-22573.79490418,0.000207,2]
[399517144,1766427044609,-215.32702677,0.00020723,2]
[399517145,1766427044619,-359.76179104,0.00020723,2]
[399517146,1766427044628,-150.30615582,0.00020778,5]
[399517147,1766427044638,-1000.0,0.00020795,2]
[399517148,1766427044647,-223.0315306,0.00020869,2]
[399517149,1766427044656,-6537.70854,0.000209,2]
[399517150,1766427044666,-150.9,0.0002099,2]
[399517151,1766427044675,-20000.0,0.00021,2]
[399517152,1766427044684,-160.0,0.00021,7]
[399517153,1766427044694,-1000.0,0.00021,4]
[399517154,1766427044703,-324.94669548,0.00021,14]
[399517155,1766427044713,-500.0,0.00021,2]
[399517156,1766427044723,-500.0,0.00021,10]
[399517157,1766427044732,-470.78024152,0.00021,10]
[399517158,1766427044748,-350.0,0.00021,2]
[399517159,1766427044757,-280.03725112,0.00021,2]
[399517160,1766427044766,-767.7842514,0.00021,2]
[399517161,1766427044775,-5623.26,0.00021068,2]
[399517162,1766427044866,-2000.0,0.000212,2]
[399517163,1766427044875,-1000.0,0.000212,2]
[399517164,1766427044885,-200.0,0.000212,2]
[399517165,1766427044894,-601.0,0.000212,2]
[399517166,1766427044903,-975.0,0.000212,2]
[399517167,1766427044912,-305.0,0.000212,2]
[399517168,1766427044921,-3645.3215772,0.00021273,2]
[399517169,1766427044930,-931.82821883,0.00021339,2]
[399517170,1766427044940,-154.23,0.00021363,2]
[399517171,1766427044949,-500.0,0.00021387,2]
[399517172,1766427044958,-500.0,0.00021387,2]
[399517173,1766427044967,-500.0,0.00021387,2]
[399517174,1766427044977,-500.0,0.00021387,2]
[399517175,1766427044986,-500.0,0.00021387,2]
[399517176,1766427044996,-500.0,0.00021387,2]
[399517177,1766427045008,-500.0,0.00021387,2]
[399517178,1766427045018,-799.3,0.00021387,2]
[399517179,1766427045027,-290.39862941,0.00021548,2]
[399517180,1766427045037,-796.19226871,0.00021548,2]
[399517181,1766427045047,-370.16,0.0002155,2]
[399517182,1766427045056,-1029.31349517,0.0002156,5]
[399517183,1766427045066,-1086.53797285,0.0002156,5]
[399517184,1766427045076,-1094.42057194,0.0002156,5]
[399517185,1766427045086,-1062.01965285,0.0002156,5]
[399517186,1766427045097,-1037.84489437,0.0002156,5]
[399517187,1766427045107,-1028.6275936,0.0002156,5]
[399517188,1766427045117,-1008.96067395,0.0002156,5]
[399517189,1766427045127,-1036.18529676,0.0002156,5]
[399517190,1766427045136,-1053.23757143,0.0002156,5]
[399517191,1766427045145,-1101.42274471,0.0002156,5]
[399517192,1766427045154,-1070.6819303,0.0002156,5]
[399517193,1766427045163,-1014.02480292,0.0002156,5]
[399517194,1766427045172,-1090.04690752,0.0002156,5]
[399517195,1766427045181,-1149.71142949,0.0002156,5]
[399517196,1766427045191,-1065.90605426,0.0002156,5]
[399517197,1766427045201,-1103.70829505,0.0002156,5]
[399517198,1766427045210,-1066.03201946,0.0002156,5]
[399517199,1766427045219,-1069.36806369,0.0002156,5]
[399517200,1766427045228,-1081.59218214,0.0002156,5]
[399517201,1766427045237,-1053.97446249,0.0002156,5]
[399517202,1766427045247,-1048.75542463,0.0002156,5]
[399517203,1766427045256,-1138.95149928,0.0002156,5]
[399517204,1766427045265,-1084.93065748,0.0002156,5]
[399517205,1766427045274,-1109.7001771,0.0002156,5]
[399517206,1766427045283,-1091.30608599,0.0002156,5]
[399517207,1766427045292,-1146.89257088,0.0002156,5]
[399517208,1766427045301,-1068.17473167,0.0002156,5]
[399517209,1766427045311,-1097.22221502,0.0002156,5]
[399517210,1766427045320,-1307.28092094,0.0002156,5]
[399517211,1766427045329,-1000.0,0.00021698,2]
[399517212,1766427045338,-150.0,0.00021842,2]
[399517213,1766427045347,-150.0,0.00021851,2]
[399517214,1766427045357,-151.66355271,0.00021861,2]
[399517215,1766427045366,-10000.0,0.0002187,2]
[399517216,1766427045375,-2002.0143,0.0002189,2]
[399517217,1766427045384,-2000.0,0.0002189,2]
[399517218,1766427045393,-3001.49,0.00021918,2]
[399517219,1766427045402,-5000.0,0.00021918,2]
[399517220,1766427045412,-151.51923746,0.00021918,2]
[399517221,1766427045422,-500.0,0.00021918,2]
[399517222,1766427045431,-150.9,0.0002196,2]
[399517223,1766427045440,-700.0,0.0002197,2]
[399517224,1766427045449,-700.0,0.0002197,2]
[399517225,1766427045459,-700.0,0.0002197,2]
[399517226,1766427045468,-700.0,0.0002197,2]
[399517227,1766427045477,-700.0,0.0002197,2]
[399517228,1766427045487,-1104.69883036,0.0002197,2]
[399517229,1766427045497,-500.0,0.0002197,2]
[399517230,1766427045506,-500.0,0.0002197,2]
[399517231,1766427045516,-500.0,0.0002197,2]
[399517232,1766427045525,-500.0,0.0002197,2]
[399517233,1766427045534,-500.0,0.0002197,2]
[399517234,1766427045544,-600.7968971,0.0002197,2]
[399517235,1766427045557,-151.7864772,0.00021994,2]
[399517236,1766427045566,-800.0,0.00022,8]
[399517237,1766427045575,-800.0,0.00022,8]
[399517238,1766427045585,-800.0,0.00022,8]
[399517239,1766427045595,-800.0,0.00022,8]
[399517240,1766427045604,-800.0,0.00022,8]
[399517241,1766427045613,-800.0,0.00022,8]
[399517242,1766427045623,-800.0,0.00022,8]
[399517243,1766427045633,-800.0,0.00022,8]
[399517244,1766427045643,-500.0,0.00022,3]
[399517245,1766427045652,-1000.0,0.00022,4]
[399517246,1766427045662,-836.0,0.00022,2]
[399517247,1766427045671,-152.0,0.00022,2]
[399517248,1766427045680,-152.0,0.00022,2]
[399517249,1766427045689,-153.0,0.00022,2]
[399517250,1766427045698,-153.0,0.00022,2]
[399517251,1766427045708,-154.0,0.00022,2]
[399517252,1766427045717,-154.0,0.00022,2]
[399517253,1766427045727,-154.0,0.00022,2]
[399517254,1766427045736,-154.0,0.00022,2]
[399517255,1766427045745,-154.0,0.00022,2]
[399517256,1766427045754,-1256.0,0.00022,2]
[399517257,1766427045764,-1256.0,0.00022,2]
[399517258,1766427045773,-152.0,0.00022,2]
[399517259,1766427045782,-152.0,0.00022,2]
[399517260,1766427045791,-836.0,0.00022,2]
[399517261,1766427045800,-836.0,0.00022,2]
[399517262,1766427045809,-154.0,0.00022,2]
[399517263,1766427045818,-836.0,0.00022,2]
[399517264,1766427045827,-154.0,0.00022,2]
[399517265,1766427045836,-836.0,0.00022,2]
[399517266,1766427045845,-154.0,0.00022,2]
[399517267,1766427045855,-836.0,0.00022,2]
[399517268,1766427045864,-154.0,0.00022,2]
[399517269,1766427045873,-836.0,0.00022,2]
[399517270,1766427045883,-154.0,0.00022,2]
[399517271,1766427045892,-836.0,0.00022,2]
[399517272,1766427045902,-154.0,0.00022,2]
[399517273,1766427045911,-836.0,0.00022,2]
[399517274,1766427045920,-154.0,0.00022,2]
[399517275,1766427045929,-836.0,0.00022,2]
[399517276,1766427045939,-154.0,0.00022,2]
[399517277,1766427045948,-534.37954393,0.00022,2]
[399517278,1766427045957,-154.0,0.00022,2]
[399517279,1766427045967,-154.0,0.00022,2]
[399517280,1766427045976,-154.0,0.00022,2]
[399517281,1766427045985,-154.0,0.00022,2]
[399517282,1766427045994,-154.0,0.00022,2]
[399517283,1766427046003,-154.0,0.00022,2]
[399517284,1766427046012,-154.0,0.00022,2]
[399517285,1766427046024,-154.0,0.00022,2]
[399517286,1766427046033,-154.0,0.00022,2]
[399517287,1766427046049,-154.0,0.00022,2]
[399517288,1766427046064,-154.0,0.00022,2]
[399517289,1766427046073,-154.0,0.00022,2]
[399517290,1766427046082,-154.0,0.00022,2]
[399517291,1766427046091,-154.0,0.00022,2]
[399517292,1766427046100,-153.47858872,0.00022,2]
[399517293,1766427046109,-154.0,0.00022,2]
[399517295,1766427046118,-154.0,0.00022,2]
[399517296,1766427046127,-215.15407605,0.00022,2]
[399517298,1766427046136,-489.60402661,0.00022,2]